fUST/lending_fUST_20250715
["ID","MTS","AMOUNT","RATE_DAILY","PERIOD"]
[372297235,1752577844636,-460.0,0.00019452,2]
[372297236,1752577844649,-460.0,0.00019452,2]
[372297237,1752577844658,-460.0,0.00019452,2]
[372297238,1752577844668,-460.0,0.00019452,2]
[372297239,1752577844677,-460.0,0.00019452,2]
[372297240,1752577844687,-460.0,0.00019452,2]
[372297241,1752577844700,-460.0,0.00019452,2]
[372297242,1752577844712,-460.0,0.00019452,2]
[372297243,1752577844723,-460.0,0.00019452,2]
[372297244,1752577844735,-585.19027895,0.00019452,2]
[372297245,1752577844746,-460.0,0.00019452,2]
[372297246,1752577844756,-460.0,0.00019452,2]
[372297247,1752577844765,-460.0,0.00019452,2]
[372297248,1752577844774,-460.0,0.00019452,2]
[372297249,1752577844783,-460.0,0.00019452,2]
[372297250,1752577844792,-460.0,0.00019452,2]
[372297251,1752577844802,-460.0,0.00019452,2]
[372297252,1752577844811,-460.0,0.00019452,2]
[372297253,1752577844820,-460.0,0.00019452,2]
[372297254,1752577844829,-460.0,0.00019452,2]
[372297255,1752577844839,-460.0,0.00019452,2]
[372297256,1752577844848,-460.0,0.00019452,2]
[372297257,1752577844857,-460.0,0.00019452,2]
[372297258,1752577844867,-384.6065614,0.00019452,2]
[372297259,1752577844876,-460.0,0.00019452,2]
[372297260,1752577844885,-460.0,0.00019452,2]
[372297261,1752577844895,-460.0,0.00019452,2]
[372297262,1752577844905,-383.18436601,0.00019452,2]
[372297263,1752577844914,-460.0,0.00019452,2]
[372297264,1752577844928,-460.0,0.00019452,2]
[372297265,1752577844946,-460.0,0.00019452,2]
[372297266,1752577844964,-460.0,0.00019452,2]
[372297267,1752577844972,-460.0,0.00019452,2]
[372297268,1752577844981,-460.0,0.00019452,2]
[372297269,1752577844990,-460.0,0.00019452,2]
[372297270,1752577845002,-460.0,0.00019452,2]
[372297271,1752577845011,-460.0,0.00019452,2]
[372297272,1752577845020,-460.0,0.00019452,2]
[372297273,1752577845029,-460.0,0.00019452,2]
[372297274,1752577845038,-460.0,0.00019452,2]
[372297275,1752577845047,-460.0,0.00019452,2]
[372297276,1752577845056,-460.0,0.00019452,2]
[372297277,1752577845064,-460.0,0.00019452,2]
[372297278,1752577845074,-460.0,0.00019452,2]
[372297279,1752577845083,-460.0,0.00019452,2]
[372297280,1752577845092,-460.0,0.00019452,2]
[372297281,1752577845101,-460.0,0.00019452,2]
[372297282,1752577845110,-460.0,0.00019452,2]
[372297283,1752577845119,-460.0,0.00019452,2]
[372297284,1752577845131,-460.0,0.00019452,2]
[372297285,1752577845140,-460.0,0.00019452,2]
[372297286,1752577845149,-461.69881072,0.00019452,2]
[372297287,1752577845157,-460.0,0.00019452,2]
[372297288,1752577845167,-460.0,0.00019452,2]
[372297289,1752577845176,-460.0,0.00019452,2]
[372297290,1752577845185,-460.0,0.00019452,2]
[372297291,1752577845194,-460.0,0.00019452,2]
[372297292,1752577845204,-460.0,0.00019452,2]
[372297293,1752577845214,-460.0,0.00019452,2]
[372297294,1752577845223,-460.0,0.00019452,2]
[372297295,1752577845233,-400.0,0.00019452,2]
[372297296,1752577845242,-460.0,0.00019452,2]
[372297297,1752577845253,-460.0,0.00019452,2]
[372297298,1752577845262,-460.0,0.00019452,2]
[372297299,1752577845272,-461.22322508,0.00019452,2]
[372297300,1752577845282,-460.0,0.00019452,2]
[372297301,1752577845292,-460.0,0.00019452,2]
[372297302,1752577845302,-527.36239569,0.00019452,2]
[372297303,1752577845312,-460.0,0.00019452,2]
[372297304,1752577845322,-466.79710821,0.00019452,2]
[372297305,1752577845332,-460.0,0.00019452,2]
[372297306,1752577845342,-460.0,0.00019452,2]
[372297307,1752577845352,-460.0,0.00019452,2]
[372297308,1752577845362,-460.0,0.00019452,2]
[372297309,1752577845371,-460.0,0.00019452,2]
[372297310,1752577845383,-460.0,0.00019452,2]
[372297311,1752577845392,-1384.84,0.00019452,2]
[372297312,1752577845402,-260.94696276,0.00019452,2]
[372297313,1752577845412,-460.0,0.00019452,2]
[372297314,1752577845421,-460.0,0.00019452,2]
[372297315,1752577845431,-460.0,0.00019452,2]
[372297316,1752577845440,-460.0,0.00019452,2]
[372297317,1752577845450,-460.0,0.00019452,2]
[372297318,1752577845459,-545.38,0.00019452,2]
[372297319,1752577845469,-460.0,0.00019452,2]
[372297320,1752577845479,-460.0,0.00019452,2]
[372297321,1752577845488,-753.13,0.00019452,2]
[372297322,1752577845499,-1517.0,0.00019452,2]
[372297323,1752577845509,-460.0,0.00019452,2]
[372297324,1752577845519,-460.0,0.00019452,2]
[372297325,1752577845529,-460.0,0.00019452,2]
[372297326,1752577845539,-460.0,0.00019452,2]
[372297327,1752577845549,-460.0,0.00019452,2]
[372297328,1752577845558,-460.0,0.00019452,2]
[372297329,1752577845568,-460.0,0.00019452,2]
[372297330,1752577845577,-460.0,0.00019452,2]
[372297331,1752577845586,-460.0,0.00019452,2]
[372297332,1752577845596,-460.0,0.00019452,2]
[372297333,1752577845606,-1524.59,0.00019452,2]
[372297334,1752577845615,-460.0,0.00019452,2]
[372297335,1752577845625,-460.0,0.00019452,2]
[372297336,1752577845634,-460.0,0.00019452,2]
[372297337,1752577845643,-460.0,0.00019452,2]
[372297338,1752577845653,-188.29,0.00019452,2]
[372297339,1752577845662,-460.0,0.00019452,2]
[372297340,1752577845671,-551.17,0.00019452,2]
[372297341,1752577845681,-257.43,0.00019452,2]
[372297342,1752577845691,-460.0,0.00019452,2]
[372297343,1752577845700,-462.81,0.00019452,2]
[372297344,1752577845710,-460.0,0.00019452,2]
[372297345,1752577845719,-1264.51,0.00019452,2]
[372297346,1752577845863,-460.0,0.00019452,2]
[372297347,1752577845873,-3427.8,0.00019452,2]
[372297348,1752577845884,-460.0,0.00019452,2]
[372297349,1752577845898,-460.0,0.00019452,2]
[372297350,1752577845907,-460.0,0.00019452,2]
[372297351,1752577845917,-460.0,0.00019452,2]
[372297352,1752577845927,-460.0,0.00019452,2]
[372297353,1752577845937,-3465.14,0.00019452,2]
[372297354,1752577845946,-460.0,0.00019452,2]
[372297355,1752577845955,-908.92,0.00019452,2]
[372297356,1752577845965,-460.0,0.00019452,2]
[372297357,1752577845974,-460.0,0.00019452,2]
[372297358,1752577845985,-642.31,0.00019452,2]
[372297359,1752577845995,-460.0,0.00019452,2]
[372297360,1752577846004,-756.16,0.00019452,2]
[372297361,1752577846014,-460.0,0.00019452,2]
[372297362,1752577846024,-460.0,0.00019452,2]
[372297363,1752577846034,-1625.81,0.00019452,2]
[372297364,1752577846044,-460.0,0.00019452,2]
[372297365,1752577846054,-460.0,0.00019452,2]
[372297366,1752577846064,-460.0,0.00019452,2]
[372297367,1752577846073,-573.97,0.00019452,2]
[372297368,1752577846082,-460.0,0.00019452,2]
[372297369,1752577846092,-460.0,0.00019452,2]
[372297370,1752577846102,-460.0,0.00019452,2]
[372297371,1752577846111,-460.0,0.00019452,2]
[372297372,1752577846122,-3506.89,0.00019452,2]
[372297373,1752577846134,-466.81,0.00019452,2]
[372297374,1752577846144,-460.0,0.00019452,2]
[372297375,1752577846154,-483.94,0.00019452,2]
[372297376,1752577846164,-460.0,0.00019452,2]
[372297377,1752577846174,-460.0,0.00019452,2]
[372297378,1752577846184,-281.42296728,0.00019452,2]
[372297379,1752577846193,-460.0,0.00019452,2]
[372297380,1752577846203,-368.22427387,0.00019452,2]
[372297381,1752577846214,-684.99,0.00019452,2]
[372297382,1752577846224,-460.0,0.00019452,2]
[372297383,1752577846234,-2380.0,0.00019452,2]
[372297384,1752577846245,-460.0,0.00019452,2]
[372297386,1752577846254,-460.0,0.00019452,2]
[372297387,1752577846264,-544.92,0.00019452,2]
[372297388,1752577846273,-460.0,0.00019452,2]
[372297389,1752577846283,-1694.95,0.00019452,2]
[372297390,1752577846293,-5389.61,0.00019452,2]
[372297391,1752577846303,-460.0,0.00019452,2]
[372297392,1752577846312,-460.0,0.00019452,2]
[372297393,1752577846322,-1339.01,0.00019452,2]
[372297394,1752577846332,-511.32,0.00019452,2]
[372297395,1752577846342,-460.0,0.00019452,2]
[372297396,1752577846351,-379.23569406,0.00019452,2]
[372297397,1752577846361,-460.0,0.00019452,2]
[372297398,1752577846371,-460.0,0.00019452,2]
[372297399,1752577846382,-460.0,0.00019452,2]
[372297400,1752577846392,-460.0,0.00019452,2]
[372297401,1752577846401,-460.0,0.00019452,2]
[372297402,1752577846410,-460.0,0.00019452,2]
[372297403,1752577846419,-1283.31,0.00019452,2]
[372297404,1752577846429,-460.0,0.00019452,2]
[372297405,1752577846438,-460.0,0.00019452,2]
[372297406,1752577846452,-460.0,0.00019452,2]
[372297407,1752577846470,-469.56494247,0.00019452,2]
[372297408,1752577846481,-460.0,0.00019452,2]
[372297409,1752577846491,-460.0,0.00019452,2]
[372297410,1752577846502,-460.0,0.00019452,2]
[372297411,1752577846511,-460.0,0.00019452,2]
[372297412,1752577846521,-460.0,0.00019452,2]
[372297413,1752577846531,-460.0,0.00019452,2]
[372297414,1752577846540,-460.0,0.00019452,2]
[372297415,1752577846550,-460.0,0.00019452,2]
[372297416,1752577846559,-460.0,0.00019452,2]
[372297417,1752577846569,-513.48,0.00019452,2]
[372297418,1752577846586,-603.71,0.00019452,2]
[372297419,1752577846596,-460.0,0.00019452,2]
[372297420,1752577846605,-360.87122314,0.00019452,2]
[372297421,1752577846615,-460.0,0.00019452,2]
[372297422,1752577846624,-460.0,0.00019452,2]
[372297423,1752577846633,-4360.37,0.00019452,2]
[372297424,1752577846643,-502.34576079,0.00019473,2]
[372297425,1752577846653,-500.0,0.00019473,2]
[372297426,1752577846662,-501.86520861,0.00019473,2]
[372297427,1752577846672,-500.0,0.00019473,2]
[372297428,1752577846682,-500.0,0.00019473,2]
[372297429,1752577846691,-500.0,0.00019473,2]
[372297430,1752577846701,-500.0,0.00019473,2]
[372297431,1752577846711,-500.0,0.00019473,2]
[372297432,1752577846720,-500.0,0.00019473,2]
[372297433,1752577846730,-504.01872942,0.00019473,2]
[372297434,1752577846739,-500.0,0.00019473,2]
[372297435,1752577846753,-310.36,0.00019537,3]
[372297437,1752577846763,-452.88,0.00019537,3]
[372297438,1752577846773,-347.66,0.00019537,3]
[372297439,1752577846782,-1352.99383539,0.00019555,2]
[372297440,1752577846792,-6676.57172299,0.00019624,2]
[372297441,1752577846801,-1019.35936246,0.00019721,2]
[372297442,1752577846811,-1000.0,0.00019721,2]
[372297443,1752577846821,-1000.0,0.00019721,2]
[372297444,1752577846833,-508.90043189,0.00019721,2]
[372297445,1752577846842,-461.26412983,0.00019726,2]
[372297446,1752577846852,-460.0,0.00019726,2]
[372297447,1752577846862,-460.0,0.00019726,2]
[372297448,1752577846871,-462.65100743,0.00019726,2]
[372297449,1752577846881,-460.0,0.00019726,2]
[372297450,1752577846891,-460.0,0.00019726,2]
[372297451,1752577846900,-460.0,0.00019726,2]
[372297452,1752577846911,-460.0,0.00019726,2]
[372297453,1752577846921,-460.0,0.00019726,2]
[372297454,1752577846930,-460.0,0.00019726,2]
[372297455,1752577846939,-460.0,0.00019726,2]
[372297456,1752577846949,-460.0,0.00019726,2]
[372297457,1752577846958,-460.0,0.00019726,2]
[372297458,1752577846968,-460.0,0.00019726,2]
[372297459,1752577846977,-379.57548603,0.00019726,2]
[372297460,1752577846987,-460.0,0.00019726,2]
[372297461,1752577846997,-460.0,0.00019726,2]
[372297462,1752577847006,-460.0,0.00019726,2]
[372297463,1752577847015,-460.0,0.00019726,2]
[372297464,1752577847024,-460.0,0.00019726,2]
[372297465,1752577847034,-460.0,0.00019726,2]
[372297466,1752577847043,-460.0,0.00019726,2]
[372297467,1752577847053,-595.80123865,0.00019726,2]
[372297468,1752577847063,-460.0,0.00019726,2]
[372297469,1752577847073,-558.21525741,0.00019726,2]
[372297470,1752577847082,-460.0,0.00019726,2]
[372297471,1752577847092,-460.0,0.00019726,2]
[372297472,1752577847101,-460.0,0.00019726,2]
[372297473,1752577847111,-460.0,0.00019726,2]
[372297474,1752577847120,-460.0,0.00019726,2]
[372297475,1752577847135,-460.0,0.00019726,2]
[372297476,1752577847145,-460.0,0.00019726,2]
[372297477,1752577847155,-460.0,0.00019726,2]
[372297478,1752577847166,-494.98226552,0.00019726,2]
[372297479,1752577847176,-460.0,0.00019726,2]
[372297480,1752577847185,-460.0,0.00019726,2]
[372297481,1752577847195,-460.0,0.00019726,2]
[372297482,1752577847206,-460.0,0.00019726,2]
[372297483,1752577847217,-460.0,0.00019726,2]
[372297484,1752577847230,-460.0,0.00019726,2]
[372297485,1752577847240,-460.0,0.00019726,2]
[372297486,1752577847251,-316.41758735,0.00019726,2]
[372297487,1752577847260,-460.0,0.00019726,2]
[372297488,1752577847270,-460.0,0.00019726,2]
[372297489,1752577847279,-460.0,0.00019726,2]
[372297490,1752577847288,-460.0,0.00019726,2]
[372297491,1752577847297,-460.0,0.00019726,2]
[372297492,1752577847306,-460.0,0.00019726,2]
[372297493,1752577847316,-460.0,0.00019726,2]
[372297494,1752577847325,-460.0,0.00019726,2]
[372297495,1752577847335,-460.0,0.00019726,2]
[372297496,1752577847345,-460.0,0.00019726,2]
[372297497,1752577847355,-460.0,0.00019726,2]
[372297498,1752577847366,-195.76260256,0.00019726,2]
[372297499,1752577847376,-460.0,0.00019726,2]
[372297500,1752577847386,-1384.84,0.00019726,2]
[372297501,1752577847396,-460.0,0.00019726,2]
[372297502,1752577847407,-460.0,0.00019726,2]
[372297503,1752577847417,-460.0,0.00019726,2]
[372297504,1752577847427,-460.0,0.00019726,2]
[372297505,1752577847437,-460.0,0.00019726,2]
[372297506,1752577847450,-545.38,0.00019726,2]
[372297507,1752577847464,-240.0,0.00019726,2]
[372297508,1752577847478,-460.0,0.00019726,2]
[372297509,1752577847491,-753.13,0.00019726,2]
[372297510,1752577847505,-1517.0,0.00019726,2]
[372297511,1752577847516,-460.0,0.00019726,2]
[372297512,1752577847527,-460.0,0.00019726,2]
[372297513,1752577847540,-460.0,0.00019726,2]
[372297514,1752577847552,-460.0,0.00019726,2]
[372297515,1752577847564,-460.0,0.00019726,2]
[372297516,1752577847578,-201.23550453,0.00019726,2]
[372297517,1752577847592,-460.0,0.00019726,2]
[372297518,1752577847606,-1524.59,0.00019726,2]
[372297519,1752577847618,-460.0,0.00019726,2]
[372297520,1752577847631,-460.0,0.00019726,2]
[372297521,1752577847645,-460.0,0.00019726,2]
[372297522,1752577847657,-156.83496223,0.00019726,2]
[372297523,1752577847670,-460.0,0.00019726,2]
[372297524,1752577847682,-551.17,0.00019726,2]
[372297525,1752577847696,-460.0,0.00019726,2]
[372297526,1752577847708,-462.81,0.00019726,2]
[372297527,1752577847720,-1264.51,0.00019726,2]
[372297528,1752577847731,-460.0,0.00019726,2]
[372297529,1752577847744,-3427.8,0.00019726,2]
[372297530,1752577847757,-460.0,0.00019726,2]
[372297531,1752577847768,-460.0,0.00019726,2]
[372297532,1752577847780,-460.0,0.00019726,2]
[372297533,1752577847791,-460.0,0.00019726,2]
[372297534,1752577847801,-460.0,0.00019726,2]
[372297535,1752577847814,-3465.14,0.00019726,2]
[372297536,1752577847827,-460.0,0.00019726,2]
[372297537,1752577847839,-908.92,0.00019726,2]
[372297538,1752577847852,-460.0,0.00019726,2]
[372297539,1752577847866,-642.31,0.00019726,2]
[372297540,1752577847881,-460.0,0.00019726,2]
[372297541,1752577847895,-756.16,0.00019726,2]
[372297542,1752577847909,-460.0,0.00019726,2]
[372297543,1752577847924,-460.0,0.00019726,2]
[372297544,1752577847936,-1625.81,0.00019726,2]
[372297545,1752577847949,-460.0,0.00019726,2]
[372297546,1752577847961,-460.0,0.00019726,2]
[372297547,1752577847973,-455.58154844,0.00019726,2]
[372297548,1752577847984,-573.97,0.00019726,2]
[372297549,1752577847996,-460.0,0.00019726,2]
[372297550,1752577848008,-460.0,0.00019726,2]
[372297551,1752577848020,-594.7,0.00019726,2]
[372297552,1752577848034,-460.0,0.00019726,2]
[372297553,1752577848047,-3506.89,0.00019726,2]
[372297554,1752577848060,-466.81,0.00019726,2]
[372297555,1752577848070,-460.0,0.00019726,2]
[372297556,1752577848082,-460.0,0.00019726,2]
[372297557,1752577848094,-460.0,0.00019726,2]
[372297558,1752577848105,-684.99,0.00019726,2]
[372297559,1752577848119,-460.0,0.00019726,2]
[372297560,1752577848133,-2380.0,0.00019726,2]
[372297561,1752577848144,-460.0,0.00019726,2]
[372297562,1752577848155,-460.0,0.00019726,2]
[372297563,1752577848166,-544.92,0.00019726,2]
[372297564,1752577848178,-460.0,0.00019726,2]
[372297565,1752577848191,-1694.95,0.00019726,2]
[372297566,1752577848202,-5389.61,0.00019726,2]
[372297567,1752577848216,-460.0,0.00019726,2]
[372297568,1752577848227,-460.0,0.00019726,2]
[372297569,1752577848239,-1339.01,0.00019726,2]
[372297570,1752577848252,-511.32,0.00019726,2]
[372297571,1752577848264,-460.0,0.00019726,2]
[372297572,1752577848275,-460.0,0.00019726,2]
[372297573,1752577848287,-460.0,0.00019726,2]
[372297574,1752577848298,-460.0,0.00019726,2]
[372297575,1752577848309,-1283.31,0.00019726,2]
[372297576,1752577848321,-460.0,0.00019726,2]
[372297577,1752577848333,-216.94396209,0.00019726,2]
[372297578,1752577848344,-460.0,0.00019726,2]
[372297579,1752577848357,-460.0,0.00019726,2]
[372297580,1752577848369,-460.0,0.00019726,2]
[372297581,1752577848381,-460.0,0.00019726,2]
[372297582,1752577848392,-460.0,0.00019726,2]
[372297583,1752577848404,-465.48192467,0.00019726,2]
[372297584,1752577848415,-460.0,0.00019726,2]
[372297585,1752577848426,-513.48,0.00019726,2]
[372297586,1752577848437,-603.71,0.00019726,2]
[372297587,1752577848448,-460.0,0.00019726,2]
[372297588,1752577848459,-460.0,0.00019726,2]
[372297589,1752577848471,-460.0,0.00019726,2]
[372297590,1752577848482,-4360.37,0.00019726,2]
[372297591,1752577848494,-151.0,0.000198,2]
[372297592,1752577848507,-300.0,0.00019823,2]
[372297593,1752577848519,-6676.57172299,0.00019866,2]
[372297594,1752577848531,-3404.57277499,0.00019869,2]
[372297595,1752577848544,-1283.0,0.0001992,2]
[372297596,1752577848556,-460.0,0.0002,2]
[372297597,1752577848568,-460.0,0.0002,2]
[372297598,1752577848580,-460.0,0.0002,2]
[372297599,1752577848591,-460.0,0.0002,2]
[372297600,1752577848604,-460.0,0.0002,2]
[372297601,1752577848615,-460.0,0.0002,2]
[372297602,1752577848626,-460.0,0.0002,2]
[372297603,1752577848638,-460.0,0.0002,2]
[372297604,1752577848649,-460.0,0.0002,2]
[372297605,1752577848661,-460.0,0.0002,2]
[372297606,1752577848672,-460.0,0.0002,2]
[372297607,1752577848684,-460.0,0.0002,2]
[372297608,1752577848695,-460.0,0.0002,2]
[372297609,1752577848706,-460.0,0.0002,2]
[372297610,1752577848717,-460.0,0.0002,2]
[372297611,1752577848728,-460.0,0.0002,2]
[372297612,1752577848739,-460.0,0.0002,2]
[372297613,1752577848752,-460.0,0.0002,2]
[372297614,1752577848763,-460.0,0.0002,2]
[372297615,1752577848774,-460.0,0.0002,2]
[372297616,1752577848785,-460.0,0.0002,2]
[372297617,1752577848796,-460.0,0.0002,2]
[372297618,1752577848807,-460.0,0.0002,2]
[372297619,1752577848819,-460.0,0.0002,2]
[372297620,1752577848830,-460.0,0.0002,2]
[372297621,1752577848841,-460.0,0.0002,2]
[372297622,1752577848852,-460.0,0.0002,2]
[372297623,1752577848863,-460.0,0.0002,2]
[372297624,1752577848874,-460.0,0.0002,2]
[372297625,1752577848885,-213.48437101,0.0002,2]
[372297626,1752577848897,-460.0,0.0002,2]
[372297627,1752577848908,-460.0,0.0002,2]
[372297628,1752577848921,-460.0,0.0002,2]
[372297629,1752577848933,-460.0,0.0002,2]
[372297630,1752577848944,-460.0,0.0002,2]
[372297631,1752577848955,-1384.84,0.0002,2]
[372297632,1752577848966,-460.0,0.0002,2]
[372297633,1752577848978,-460.0,0.0002,2]
[372297634,1752577848989,-460.0,0.0002,2]
[372297635,1752577849001,-460.0,0.0002,2]
[372297636,1752577849013,-545.38,0.0002,2]
[372297637,1752577849025,-460.0,0.0002,2]
[372297638,1752577849036,-753.13,0.0002,2]
[372297639,1752577849047,-1517.0,0.0002,2]
[372297640,1752577849058,-460.0,0.0002,2]
[372297641,1752577849070,-460.0,0.0002,2]
[372297642,1752577849082,-495.78,0.0002,2]
[372297643,1752577849095,-460.0,0.0002,2]
[372297644,1752577849106,-460.0,0.0002,2]
[372297645,1752577849118,-1524.59,0.0002,2]
[372297646,1752577849133,-460.0,0.0002,2]
[372297647,1752577849144,-460.0,0.0002,2]
[372297648,1752577849156,-460.0,0.0002,2]
[372297649,1752577849167,-460.0,0.0002,2]
[372297650,1752577849180,-551.17,0.0002,2]
[372297651,1752577849191,-460.0,0.0002,2]
[372297652,1752577849203,-462.81,0.0002,2]
[372297653,1752577849217,-1264.51,0.0002,2]
[372297654,1752577849229,-460.0,0.0002,2]
[372297655,1752577849242,-3427.8,0.0002,2]
[372297656,1752577849255,-460.0,0.0002,2]
[372297657,1752577849267,-460.0,0.0002,2]
[372297658,1752577849279,-460.0,0.0002,2]
[372297659,1752577849468,-460.0,0.0002,2]
[372297660,1752577849484,-460.0,0.0002,2]
[372297661,1752577849494,-3465.14,0.0002,2]
[372297662,1752577849505,-460.0,0.0002,2]
[372297663,1752577849515,-908.92,0.0002,2]
[372297664,1752577849524,-460.0,0.0002,2]
[372297665,1752577849533,-642.31,0.0002,2]
[372297666,1752577849543,-460.0,0.0002,2]
[372297667,1752577849553,-756.16,0.0002,2]
[372297668,1752577849563,-460.0,0.0002,2]
[372297669,1752577849573,-460.0,0.0002,2]
[372297670,1752577849582,-1625.81,0.0002,2]
[372297671,1752577849592,-460.0,0.0002,2]
[372297672,1752577849601,-460.0,0.0002,2]
[372297673,1752577849610,-573.97,0.0002,2]
[372297674,1752577849619,-460.0,0.0002,2]
[372297675,1752577849629,-460.0,0.0002,2]
[372297676,1752577849638,-460.0,0.0002,2]
[372297677,1752577849647,-3506.89,0.0002,2]
[372297678,1752577849657,-466.81,0.0002,2]
[372297679,1752577849667,-460.0,0.0002,2]
[372297680,1752577849676,-460.0,0.0002,2]
[372297681,1752577849685,-460.0,0.0002,2]
[372297682,1752577849695,-684.99,0.0002,2]
[372297683,1752577849705,-460.0,0.0002,2]
[372297684,1752577849714,-2380.0,0.0002,2]
[372297685,1752577849724,-460.0,0.0002,2]
[372297686,1752577849734,-460.0,0.0002,2]
[372297687,1752577849744,-544.92,0.0002,2]
[372297688,1752577849755,-1694.95,0.0002,2]
[372297689,1752577849765,-460.0,0.0002,2]
[372297690,1752577849774,-460.0,0.0002,2]
[372297691,1752577849784,-5389.61,0.0002,2]
[372297692,1752577849794,-1339.01,0.0002,2]
[372297693,1752577849804,-511.32,0.0002,2]
[372297694,1752577849813,-460.0,0.0002,2]
[372297695,1752577849822,-460.0,0.0002,2]
[372297696,1752577849832,-460.0,0.0002,2]
[372297697,1752577849841,-460.0,0.0002,2]
[372297698,1752577849851,-1283.31,0.0002,2]
[372297699,1752577849860,-481.24664277,0.0002,2]
[372297700,1752577849871,-460.0,0.0002,2]
[372297701,1752577849881,-460.0,0.0002,2]
[372297702,1752577849891,-460.0,0.0002,2]
[372297703,1752577849900,-460.0,0.0002,2]
[372297704,1752577849910,-513.48,0.0002,2]
[372297705,1752577849919,-603.71,0.0002,2]
[372297706,1752577849929,-460.0,0.0002,2]
[372297707,1752577849938,-460.0,0.0002,2]
[372297708,1752577849948,-151.54394486,0.0002,2]
[372297709,1752577849957,-4360.37,0.0002,2]
[372297710,1752577849967,-1000.0,0.00020021,2]
[372297711,1752577849977,-1000.0,0.00020021,2]
[372297712,1752577849987,-500.0,0.00020021,2]
[372297713,1752577849996,-160.0,0.00020025,2]
[372297714,1752577850007,-800.0,0.00020038,2]
[372297715,1752577850017,-76980.98637407,0.0002007,2]
[372297716,1752577850028,-1352.99383539,0.00020091,2]
[372297717,1752577850037,-6676.57172299,0.00020107,2]
[372297718,1752577850047,-2837.45514066,0.00020178,2]
[372297719,1752577850056,-218.516488,0.00020187,2]
[372297720,1752577850066,-215.50840239,0.00020235,2]
[372297721,1752577850075,-160.0,0.00020235,2]
[372297722,1752577850085,-838.84061749,0.00020235,2]
[372297723,1752577850095,-230.76969291,0.00020235,2]
[372297724,1752577850105,-525.51022752,0.00020235,2]
[372297725,1752577850114,-160.0,0.00020235,2]
[372297726,1752577850124,-468.75,0.00020235,2]
[372297727,1752577850136,-160.0,0.00020235,2]
[372297728,1752577850147,-160.0,0.00020235,2]
[372297729,1752577850157,-214.37129034,0.00020235,2]
[372297730,1752577850166,-160.0,0.00020235,2]
[372297731,1752577850178,-160.0,0.00020235,2]
[372297732,1752577850187,-12603.13032295,0.00020236,2]
[372297733,1752577850196,-1500.0,0.00020268,2]
[372297734,1752577850207,-1500.0,0.00020268,2]
[372297735,1752577850216,-460.0,0.00020273,2]
[372297736,1752577850226,-460.0,0.00020273,2]